Workbook

Sheet Лист1
A1: Школа | C1: МОБУ СОШ с.Абубакирово | F1: Утвердил: | G1: должность | H1: Директор
A2: Типовое примерное меню приготавливаемых блюд | G2: фамилия | H2: Билалова Н.Р.
A3: Возрастная категория | E3: от 7 до 11 лет | G3: дата | H3: 02.09.2024
A5: Неделя | B5: День недели | C5: Прием пищи | D5: Раздел меню | E5: Блюда | F5: Вес блюда, г | G5: Белки | H5: Жиры | I5: Углеводы | J5: Калорийность | K5: № рецептуры | L5: Цена
A6: 1 | B6: 1 | C6: Завтрак | D6: закуска | E6: Салат из белокочанной капусты | F6: 60 | G6: 1.3 | H6: 3.7 | I6: 6.2 | J6: 57 | K6: 6 | L6: 4.7
D7: гор. блюдо | E7: Макаронные изделия отварные. Котлеты п/ф с томатным соусом | F7: 260 | G7: 16 | H7: 15 | I7: 48 | J7: 406 | K7: 197; 1 | L7: 50.75
D8: гор. напиток | E8: Чай с лимоном | F8: 200 | G8: 0.14 | H8: 0.03 | I8: 10.22 | J8: 42.89 | K8: 273 | L8: 2.72
D9: хлеб бел. | E9: Хлеб пшеничный. Масло (порциями) | F9: 40 | G9: 3 | H9: 8 | I9: 15 | J9: 139 | K9: 1; 7 | L9: 9.70
D10: хлеб черн. | E10: Хлеб ржаной | F10: 20 | G10: 1.7 | H10: 0.66 | I10: 9.66 | J10: 52 | K10: 2 | L10: 1.70
D13: итого | F13: =SUM(F6:F12) -> 580 | G13: =SUM(G6:G12) -> 22 | H13: =SUM(H6:H12) -> 26 | I13: =SUM(I6:I12) -> 89 | J13: =SUM(J6:J12) -> 696 | L13: 69.57
A14: =A6 -> 1 | B14: =B6 -> 1 | C14: Обед | D14: закуска | E14: Салат из свеклы с растительным маслом | F14: 60 | G14: 0.99 | H14: 5 | I14: 6 | J14: 72 | K14: 24 | L14: 5.42
D15: 1 блюдо | E15: Суп картофельный с горохом | F15: 250 | G15: 6.1 | H15: 4 | I15: 17 | J15: 131 | K15: 42 | L15: 10.90
D16: 2 блюдо | E16: Птица, тушеная в соусе с овощами | F16: 180 | G16: 16.1 | H16: 18 | I16: 19 | J16: 301 | K16: 261 | L16: 47.14
D17: гарнир
D18: сладкое | E18: Компот из смеси сухофруктов | F18: 200 | G18: 0.78 | H18: 0.06 | I18: 30.1 | J18: 126 | K18: 707 | L18: 9.46
D19: хлеб бел. | E19: Хлеб пшеничный | F19: 30 | G19: 2.43 | H19: 0 | I19: 15 | J19: 73 | K19: 1 | L19: 2.70
D20: хлеб черн. | E20: Хлеб ржаной | F20: 30 | G20: 2.55 | H20: 0.99 | I20: 14 | J20: 78 | K20: 2 | L20: 2.40
D23: итого | F23: =SUM(F14:F22) -> 750 | G23: =SUM(G14:G22) -> 29 | H23: =SUM(H14:H22) -> 28 | I23: =SUM(I14:I22) -> 101 | J23: =SUM(J14:J22) -> 781 | L23: =SUM(L14:L22) -> 78.02
A24: =A6 -> 1 | B24: =B6 -> 1 | C24: Итого за день: | F24: =F13+F23 -> 1330 | G24: =G13+G23 -> 51 | H24: =H13+H23 -> 55 | I24: =I13+I23 -> 190 | J24: =J13+J23 -> 1477 | L24: 149.07
A25: 1 | B25: 2 | C25: Завтрак | D25: гор. блюдо | E25: Каша рисовая молочная вязкая | F25: 185 | G25: 5 | H25: 7 | I25: 38 | J25: 234 | K25: 186 | L25: 24.24
D26: гор. напиток | E26: Какао на молоке | F26: 200 | G26: 9.2 | H26: 7.1 | I26: 11.03 | J26: 148 | K26: 266 | L26: 20.53
D27: хлеб чер. | E27: Хлеб ржаной | F27: 20 | G27: 2 | H27: 1 | I27: 10 | J27: 52 | K27: 2 | L27: 1.70
D28: хлеб бел. | E28: Хлеб пшеничный. Сыр (порциями) | F28: 40 | G28: 5 | H28: 3.25 | I28: 17 | J28: 109 | K28: 1; 9 | L28: 9.20
D29: фрукты | E29: Яблоко | F29: 100 | G29: 0.4 | H29: 0.4 | I29: 9.8 | J29: 47 | K29: 588 | L29: 13.90
D32: итого | F32: =SUM(F25:F31) -> 545 | G32: =SUM(G25:G31) -> 21 | H32: =SUM(H25:H31) -> 18 | I32: =SUM(I25:I31) -> 85 | J32: =SUM(J25:J31) -> 590 | L32: =SUM(L25:L31) -> 69.57
A33: =A25 -> 1 | B33: =B25 -> 2 | C33: Обед | D33: закуска | E33: Салат "Степной" | F33: 60 | G33: 1 | H33: 2 | I33: 4.9 | J33: 45 | K33: 40 | L33: 7.10
D34: 1 блюдо | E34: Рассольник ленинградский | F34: 250 | G34: 2.68 | H34: 6.2 | I34: 13.8 | J34: 121 | K34: 56 | L34: 8.40
D35: 2 блюдо | E35: Рыба, запеченная с картофелем | F35: 200 | G35: 11.64 | H35: 12.28 | I35: 30.28 | J35: 279 | K35: 81 | L35: 40.94
D36: гарнир
D37: сладкое | E37: Компот из смеси сухофруктов | F37: 200 | G37: 0.78 | H37: 0.06 | I37: 30.1 | J37: 125 | K37: 707 | L37: 9.46
D38: хлеб бел. | E38: Хлеб пшеничный | F38: 30 | G38: 2.43 | H38: 0.3 | I38: 14.64 | J38: 73 | K38: 1 | L38: 2.70
D39: кондитерск. | E39: Печенье | F39: 30 | G39: 2.2 | H39: 3 | I39: 22.4 | J39: 122 | K39: 20 | L39: 7.02
D40: хлеб чер. | E40: Хлеб ржаной | F40: 30 | G40: 2.55 | H40: 0.99 | I40: 14.49 | J40: 78 | K40: 2 | L40: 2.40
D42: итого | F42: =SUM(F33:F41) -> 800 | G42: =SUM(G33:G41) -> 23.28 | H42: =SUM(H33:H41) -> 24.83 | I42: =SUM(I33:I41) -> 130.61 | J42: =SUM(J33:J41) -> 842.21 | L42: =SUM(L33:L41) -> 78.02
A43: =A25 -> 1 | B43: =B25 -> 2 | C43: Итого за день: | F43: =F32+F42 -> 1345 | G43: =G32+G42 -> 45 | H43: =H32+H42 -> 43 | I43: =I32+I42 -> 216 | J43: =J32+J42 -> 1432 | L43: =L32+L42 -> 147.59
A44: 1 | B44: 3 | C44: Завтрак | D44: гор. блюдо | E44: Суп молочный с макаронными изделиями | F44: 250 | G44: 6.9 | H44: 5.2 | I44: 19.9 | J44: 150 | K44: 78 | L44: 24.37
D45: булочное | E45: Булочка домашняя | F45: 100 | G45: 6.9 | H45: 10.4 | I45: 50.4 | J45: 328 | K45: 290 | L45: 24.60
D46: гор. напиток | E46: Чай с сахаром | F46: 200 | G46: 0.08 | H46: 0.02 | I46: 10.01 | J46: 41 | K46: 271 | L46: 2.30
D47: хлеб бел. | E47: Хлеб пшеничный | F47: 30 | G47: 2.43 | H47: 0.3 | I47: 14.64 | J47: 73 | K47: 1 | L47: 2.70
D48: хлеб чер. | E48: Хлеб ржаной | F48: 20 | G48: 1.7 | H48: 0.66 | I48: 9.66 | J48: 52 | K48: 2 | L48: 1.70
D49: фрукты | E49: Яблоко | F49: 100 | G49: 0.4 | H49: 0.4 | I49: 9.8 | J49: 47 | K49: 588 | L49: 13.90
D50: итого | F50: =SUM(F44:F49) -> 700 | G50: 18 | H50: =SUM(H44:H49) -> 17 | I50: 97 | J50: =SUM(J44:J49) -> 690 | L50: =SUM(L44:L49) -> 69.57
A51: =A44 -> 1 | B51: =B44 -> 3 | C51: Обед | D51: закуска | E51: Винегрет овощной | F51: 60 | G51: 0.82 | H51: 3.71 | I51: 5.06 | J51: 56.8 | K51: 45 | L51: 6.02
D52: 1 блюдо | E52: Суп крестьянский с рисом со сметаной | F52: 250 | G52: 2.2 | H52: 6.2 | I52: 14.6 | J52: 123.7 | K52: 98 | L52: 9.20
D53: 2 блюдо | E53: Тефтели п/ф с томатным соусом | F53: 110 | G53: 10.5 | H53: 10.5 | I53: 9.7 | J53: 191 | K53: 2 | L53: 39.77
D54: гарнир | E54: Пюре гороховое | F54: 150 | G54: 15.7 | H54: 4.71 | I54: 32.7 | J54: 237 | K54: 163 | L54: 8.51
D55: сладкое | E55: Компот из свежих плодов или ягод | F55: 200 | G55: 0.16 | H55: 0 | I55: 14.99 | J55: 60.64 | K55: 282 | L55: 9.42
D56: хлеб бел. | E56: Хлеб пшеничный | F56: 30 | G56: 2.43 | H56: 0.3 | I56: 14.64 | J56: 72.6 | K56: 1 | L56: 2.70
D57: хлеб чер. | E57: Хлеб ржаной | F57: 30 | G57: 2.55 | H57: 0.99 | I57: 14.49 | J57: 77.7 | K57: 2 | L57: 2.40
D60: итого | F60: =SUM(F51:F59) -> 830 | G60: =SUM(G51:G59) -> 34 | H60: =SUM(H51:H59) -> 26 | I60: =SUM(I51:I59) -> 106 | J60: =SUM(J51:J59) -> 819 | L60: =SUM(L51:L59) -> 78.02
A61: =A44 -> 1 | B61: =B44 -> 3 | C61: Итого за день: | F61: =F50+F60 -> 1530 | G61: =G50+G60 -> 52 | H61: =H50+H60 -> 43 | I61: =I50+I60 -> 203 | J61: =J50+J60 -> 1509 | L61: =L50+L60 -> 147.59
A62: 1 | B62: 4 | C62: Завтрак | D62: закуска | E62: Салат "Степной" из разных овощей | F62: 60 | G62: 1 | H62: 1 | I62: 4 | J62: 33 | K62: 43 | L62: 7.10
D63: горячее блюдо | E63: Каша гречневая рассыпчатая. Тефтели п/ф с томатным соусом | F63: 280 | G63: 20.37 | H63: 16.7 | I63: 54.3 | J63: 234 | K63: 330; 2 | L63: 45.87
D64: гор. напиток | E64: Напиток апельсиновый или лимонный | F64: 200 | G64: 0.1 | H64: 0 | I64: 20.4 | J64: 79 | K64: 313 | L64: 5.70
D65: хлеб бел. | E65: Хлеб пшеничный, сыр (порциями) | F65: 40 | G65: 5 | H65: 3 | I65: 17 | J65: 109 | K65: 1; 9 | L65: 9.20
D66: хлеб черн. | E66: Хлеб ржаной | F66: 20 | G66: 1.7 | H66: 1 | I66: 10 | J66: 52 | K66: 2 | L66: 1.70
D70: итого | F70: =SUM(F62:F69) -> 600 | G70: =SUM(G62:G69) -> 28 | H70: =SUM(H62:H69) -> 22 | I70: =SUM(I62:I69) -> 105 | J70: =SUM(J62:J69) -> 507 | L70: =SUM(L62:L69) -> 69.57
A71: =A62 -> 1 | B71: =B62 -> 4 | C71: Обед | D71: закуска | E71: Салат из белокачанной капусты, моркови и кукурузы | F71: 60 | G71: 1.41 | H71: 4.19 | I71: 6.78 | J71: 65.3 | K71: 10 | L71: 6.50
D72: 1 блюдо | E72: Суп картофельный с макаронными изделиями | F72: 250 | G72: 5.5 | H72: 5 | I72: 20 | J72: 149 | K72: 61 | L72: 8.20
D73: 2 блюдо | E73: Жаркое по домашнему (из мяса птицы) | F73: 200 | G73: 11.43 | H73: 14.4 | I73: 23.66 | J73: 270 | K73: 32 | L73: 34.90
D74: гарнир
D75: сладкое | E75: Напиток "Витошка" витаминный | F75: 200 | G75: 0 | H75: 0 | I75: 15.8 | J75: 60 | K75: 287 | L75: 9.42
D76: хлеб бел. | E76: Хлеб пшеничный | F76: 30 | G76: 2.43 | H76: 0.3 | I76: 14.64 | J76: 72.6 | K76: 1 | L76: 2.70
D77: хлеб чер. | E77: Хлеб ржаной | F77: 30 | G77: 2.55 | H77: 0.99 | I77: 14.49 | J77: 77.7 | K77: 2 | L77: 2.40
D78: фрукты | E78: Яблоко | F78: 100 | G78: 0.4 | H78: 0.4 | I78: 9.8 | J78: 47 | K78: 588 | L78: 13.90
D80: итого | F80: =SUM(F71:F79) -> 870 | G80: =SUM(G71:G79) -> 24 | H80: =SUM(H71:H79) -> 25 | I80: =SUM(I71:I79) -> 105 | J80: =SUM(J71:J79) -> 742 | L80: =SUM(L71:L79) -> 78.02
A81: =A62 -> 1 | B81: =B62 -> 4 | C81: Итого за день: | F81: =F70+F80 -> 1470 | G81: =G70+G80 -> 52 | H81: =H70+H80 -> 47 | I81: =I70+I80 -> 211 | J81: =J70+J80 -> 1248 | L81: =L70+L80 -> 147.59
A82: 1 | B82: 5 | C82: Завтрак | D82: гор.блюдо | E82: Картофельное пюре. Птица, тушенная в сметанном соусе | F82: 270 | G82: 11.65 | H82: 18.48 | I82: 28.34 | J82: 325 | K82: 133; 594 | L82: 52.05
D83: напиток | E83: Напиток "Витошка" витаминный | F83: 200 | G83: 0 | H83: 0 | I83: 16 | J83: 60 | K83: 287 | L83: 9.42
D84: хлеб чер. | E84: Хлеб ржаной | F84: 20 | G84: 1.7 | H84: 0.66 | I84: 10 | J84: 52 | K84: 2 | L84: 1.70
D85: хлеб бел. | E85: Хлеб пшеничный | F85: 30 | G85: 2.43 | H85: 0.3 | I85: 15 | J85: 73 | K85: 1 | L85: 2.70
D86: кондитерск. | E86: Пряник | F86: 25 | G86: 1.48 | H86: 1.63 | I86: 17.63 | J86: 88 | K86: 821 | L86: 3.70
D89: итого | F89: =SUM(F82:F88) -> 545 | G89: =SUM(G82:G88) -> 17 | H89: =SUM(H82:H88) -> 21 | I89: =SUM(I82:I88) -> 86 | J89: =SUM(J82:J88) -> 598 | L89: =SUM(L82:L88) -> 69.57
A90: =A82 -> 1 | B90: =B82 -> 5 | C90: Обед | D90: закуска | E90: Салат "Школьный" | F90: 80 | G90: 1 | H90: 6 | I90: 5.3 | J90: 80 | K90: 32 | L90: 6.29
D91: 1 блюдо | E91: Борщ из капусты с картофелем и сметаной | F91: 250 | G91: 2 | H91: 6 | I91: 12.8 | J91: 112 | K91: 82 | L91: 10.20
D92: 2 блюдо | E92: Котлета п/ф с томатным соусом | F92: 100 | G92: 10.3 | H92: 10 | I92: 9.5 | J92: 188 | K92: 1 | L92: 39.77
D93: гарнир | E93: Каша рисовая рассыпчатая | F93: 180 | G93: 4 | H93: 4 | I93: 49.14 | J93: 247 | K93: 171 | L93: 7.20
D94: сладкое | E94: Компот из смеси сухофруктов | F94: 200 | G94: 0.78 | H94: 0.06 | I94: 30.1 | J94: 125 | K94: 707 | L94: 9.46
D95: хлеб бел. | E95: Хлеб пшеничный | F95: 30 | G95: 2 | H95: 0 | I95: 15 | J95: 73 | K95: 1 | L95: 2.70
D96: хлеб чер. | E96: Хлеб ржаной | F96: 30 | G96: 3 | H96: 0.99 | I96: 14.49 | J96: 78 | K96: 2 | L96: 2.40
D99: итого | F99: =SUM(F90:F98) -> 870 | G99: =SUM(G90:G98) -> 23.45 | H99: =SUM(H90:H98) -> 27 | I99: =SUM(I90:I98) -> 136 | J99: =SUM(J90:J98) -> 902 | L99: =SUM(L90:L98) -> 78.02
A100: =A82 -> 1 | B100: =B82 -> 5 | C100: Итого за день: | F100: =F89+F99 -> 1415 | G100: =G89+G99 -> 41 | H100: =H89+H99 -> 49 | I100: =I89+I99 -> 222 | J100: =J89+J99 -> 1499 | L100: =L89+L99 -> 147.59
A101: 2 | B101: 1 | C101: Завтрак | D101: закуска | E101: Салат витаминный | F101: 60 | G101: 0.9 | H101: 2.7 | I101: 6.5 | J101: 56 | K101: 21 | L101: 7.70
D102: гор. блюдо | E102: Макаронные изделия отварные. Котлета п/ф с томатным соусом | F102: 260 | G102: 16.04 | H102: 14.53 | I102: 47.76 | J102: 405.73 | K102: 197; 1 | L102: 50.75
D103: гор. напиток | E103: Чай с лимоном | F103: 200 | G103: 0.14 | H103: 0.03 | I103: 10.22 | J103: 42.89 | K103: 273 | L103: 2.72
D104: хлеб бел. | E104: Хлеб пшеничный | F104: 30 | G104: 2.43 | H104: 0.3 | I104: 14.64 | J104: 72.6 | K104: 1 | L104: 2.70
D105: хлеб черн. | E105: Хлеб ржаной | F105: 20 | G105: 1.7 | H105: 0.66 | I105: 9.66 | J105: 51.8 | K105: 2 | L105: 1.70
D106: конитерск. | E106: Печенье овсяное | F106: 20 | G106: 1.3 | H106: 2.88 | I106: 14.36 | J106: 87.4 | K106: 822 | L106: 4.00
D109: итого | F109: =SUM(F101:F108) -> 590 | G109: =SUM(G101:G108) -> 23 | H109: =SUM(H101:H108) -> 21 | I109: =SUM(I101:I108) -> 103 | J109: =SUM(J101:J108) -> 716 | L109: =SUM(L101:L108) -> 69.57
A110: =A101 -> 2 | B110: =B101 -> 1 | C110: Обед | D110: закуска | E110: Салат из моркови и яблок | F110: 60 | G110: 0.56 | H110: 2.09 | I110: 6.36 | J110: 45.25 | K110: 18 | L110: 6.97
D111: 1 блюдо | E111: Уха с крупой | F111: 250 | G111: 8.12 | H111: 1 | I111: 11.19 | J111: 82.37 | K111: 71 | L111: 10.32
D112: 2 блюдо | E112: Филе грудки, припущенное с овощами | F112: 100 | G112: 5.19 | H112: 13.26 | I112: 5.51 | J112: 162.98 | K112: 439 | L112: 35.61
D113: гарнир | E113: Капуста тушенная | F113: 200 | G113: 4.5 | H113: 6.4 | I113: 18.4 | J113: 158 | K113: 148 | L113: 10.56
D114: сладкое | E114: Компот из смеси сухофруктов | F114: 200 | G114: 0.78 | H114: 0.06 | I114: 30.1 | J114: 125.2 | K114: 707 | L114: 9.46
D115: хлеб бел. | E115: Хлеб пшеничный | F115: 30 | G115: 2.43 | H115: 0.3 | I115: 14.64 | J115: 72.6 | K115: 1 | L115: 2.70
D116: хлеб черн. | E116: Хлеб ржаной | F116: 30 | G116: 2.55 | H116: 0.99 | I116: 14.49 | J116: 77.7 | K116: 2 | L116: 2.40
D119: итого | F119: =SUM(F110:F118) -> 870 | G119: =SUM(G110:G118) -> 24 | H119: =SUM(H110:H118) -> 24 | I119: =SUM(I110:I118) -> 101 | J119: =SUM(J110:J118) -> 724 | L119: =SUM(L110:L118) -> 78.02
A120: =A101 -> 2 | B120: =B101 -> 1 | C120: Итого за день: | F120: =F109+F119 -> 1460 | G120: =G109+G119 -> 47 | H120: =H109+H119 -> 45 | I120: =I109+I119 -> 204 | J120: =J109+J119 -> 1441 | L120: =L109+L119 -> 147.59
A121: 2 | B121: 2 | C121: Завтрак | D121: гор.блюдо | E121: Каша молочная "Дружба" | F121: 200 | G121: 6.31 | H121: 7.63 | I121: 35.41 | J121: 236 | K121: 196 | L121: 25.97
D122: гор. напиток | E122: Чай с молоком и сахаром | F122: 200 | G122: 1.65 | H122: 1.65 | I122: 12.4 | J122: 71 | K122: 259 | L122: 5.20
D123: хлеб черн. | E123: Хлеб ржаной | F123: 20 | G123: 1.7 | H123: 0.66 | I123: 9.66 | J123: 52 | K123: 2 | L123: 1.70
D124: хлеб бел. | E124: Хлеб пшеничный, масло (порциями) | F124: 40 | G124: 3 | H124: 8 | I124: 15 | J124: 139 | K124: 1; 7 | L124: 9.70
D125: кисломол. | E125: Йогурт детский питьевой | F125: 100 | G125: 4 | H125: 1.5 | I125: 14.3 | J125: 90 | K125: 1 | L125: 27.00
D128: итого | F128: =SUM(F121:F127) -> 560 | G128: =SUM(G121:G127) -> 16.66 | H128: =SUM(H121:H127) -> 19.44 | I128: =SUM(I121:I127) -> 86.77 | J128: =SUM(J121:J127) -> 587.88 | L128: =SUM(L121:L127) -> 69.57
A129: =A121 -> 2 | B129: =B121 -> 2 | C129: Обед | D129: закуска | E129: Салат из белокочанной капусты | F129: 60 | G129: 1.3 | H129: 3.7 | I129: 6 | J129: 57 | K129: 6 | L129: 4.70
D130: 1 блюдо | E130: Свекольник | F130: 250 | G130: 2.5 | H130: 4.2 | I130: 17.4 | J130: 131 | K130: 70 | L130: 7.80
D131: 2 блюдо | E131: Тефтели п/ф с томатным соусом | F131: 110 | G131: 10.5 | H131: 10.5 | I131: 9.7 | J131: 191 | K131: 2 | L131: 39.77
D132: гарнир | E132: Макаронные изделия отварные | F132: 160 | G132: 5.74 | H132: 4.23 | I132: 38.26 | J132: 217 | K132: 197 | L132: 11.23
D133: сладкое | E133: Компот из свежих плодов или ягод | F133: 200 | G133: 0.16 | H133: 0 | I133: 14.99 | J133: 61 | K133: 282 | L133: 9.42
D134: хлеб бел. | E134: Хлеб пшеничный | F134: 30 | G134: 2.43 | H134: 0.3 | I134: 14.64 | J134: 73 | K134: 1 | L134: 2.70
D135: хлеб чер. | E135: Хлеб ржаной | F135: 30 | G135: 2.55 | H135: 0.99 | I135: 14.49 | J135: 78 | K135: 2 | L135: 2.40
D138: итого | F138: =SUM(F129:F137) -> 840 | G138: =SUM(G129:G137) -> 25 | H138: =SUM(H129:H137) -> 24 | I138: =SUM(I129:I137) -> 116 | J138: =SUM(J129:J137) -> 807 | L138: =SUM(L129:L137) -> 78.02
A139: =A121 -> 2 | B139: =B121 -> 2 | C139: Итого за день: | F139: =F128+F138 -> 1400 | G139: =G128+G138 -> 41.84 | H139: =H128+H138 -> 43.36 | I139: =I128+I138 -> 202.45 | J139: =J128+J138 -> 1394.69 | L139: =L128+L138 -> 147.59
A140: 2 | B140: 3 | C140: Завтрак | D140: закуска | E140: Винегрет овощной | F140: 60 | G140: 0.82 | H140: 3.71 | I140: 5.06 | J140: 56.8 | K140: 45 | L140: 6.3
D141: гор. блюдо | E141: Плов из птицы | F141: 200 | G141: 10.85 | H141: 22.69 | I141: 54.05 | J141: 462.03 | K141: 123 | L141: 49.45
D142: горячий напиток | E142: Напиток "Витошка" витаминный | F142: 200 | G142: 0 | H142: 0 | I142: 15.8 | J142: 60 | K142: 287 | L142: 9.42
D143: хлеб бел. | E143: Хлеб пшеничный | F143: 30 | G143: 2.43 | H143: 0.3 | I143: 14.64 | J143: 72.6 | K143: 1 | L143: 2.70
D144: хлеб чер. | E144: Хлеб ржаной | F144: 20 | G144: 1.7 | H144: 0.66 | I144: 9.66 | J144: 51.8 | K144: 2 | L144: 1.70
D147: итого | F147: =SUM(F140:F146) -> 510 | G147: =SUM(G140:G146) -> 16 | H147: =SUM(H140:H146) -> 27 | I147: =SUM(I140:I146) -> 99 | J147: =SUM(J140:J146) -> 703 | K147: =SUM(K140:K146) -> 458 | L147: =SUM(L140:L146) -> 69.57
A148: =A140 -> 2 | B148: =B140 -> 3 | C148: Обед | D148: закуска | E148: Салат из моркови | F148: 60 | G148: 0.7 | H148: 3.05 | I148: 9.51 | J148: 68.8 | K148: 16 | L148: 4.8
D149: 1 блюдо | E149: Суп картофельный с клецками | F149: 250 | G149: 2.67 | H149: 4.26 | I149: 13.68 | J149: 102.25 | K149: 58 | L149: 7.64
D150: 2 блюдо | E150: Котлета п/ф с томатным соусом | F150: 100 | G150: 10.3 | H150: 10.3 | I150: 9.5 | J150: 188 | K150: 1 | L150: 39.77
D151: гарнир | E151: Картофельное пюре | F151: 170 | G151: 4.31 | H151: 5.78 | I151: 19.44 | J151: 144.5 | K151: 133 | L151: 8.80
D152: сладкое | E152: Напиток лимонный или апельсиновый | F152: 200 | G152: 0.1 | H152: 0 | I152: 20 | J152: 79 | K152: 313 | L152: 5.70
D153: хлеб бел. | E153: Хлеб пшеничный | F153: 30 | G153: 2 | H153: 0 | I153: 15 | J153: 73 | K153: 1 | L153: 2.70
D154: хлеб чер. | E154: Хлеб ржаной | F154: 30 | G154: 3 | H154: 0.99 | I154: 14 | J154: 78 | K154: 2 | L154: 2.40
D155: фрукты | E155: Яблоко | F155: 100 | G155: 0.4 | H155: 0.4 | I155: 10 | J155: 47 | K155: 588 | L155: 13.90
D157: итого | F157: =SUM(F148:F156) -> 940 | G157: =SUM(G148:G156) -> 23 | H157: =SUM(H148:H156) -> 25 | I157: =SUM(I148:I156) -> 111 | J157: =SUM(J148:J156) -> 780 | L157: =SUM(L148:L156) -> 85.71
A158: =A140 -> 2 | B158: =B140 -> 3 | C158: Итого за день: | F158: =F147+F157 -> 1450 | G158: =G147+G157 -> 39 | H158: =H147+H157 -> 52 | I158: =I147+I157 -> 211 | J158: =J147+J157 -> 1483 | L158: =L147+L157 -> 155.28
A159: 2 | B159: 4 | C159: Завтрак | D159: гор. блюдо | E159: Каша "Артек" молочная вязкая | F159: 185 | G159: 7.3 | H159: 7.4 | I159: 37.5 | J159: 251 | K159: 195 | L159: 24.24
D160: напиток | E160: Какао на молоке | F160: 200 | G160: 9.2 | H160: 7.1 | I160: 11.03 | J160: 148.46 | K160: 266 | L160: 20.53
D161: хлеб бел. | E161: Хлеб пшеничный, сыр (порциями) | F161: 40 | G161: 5 | H161: 3 | I161: 17 | J161: 109 | K161: 1; 9 | L161: 9.20
D162: хлеб чер. | E162: Хлеб ржаной | F162: 20 | G162: 1.7 | H162: 0.66 | I162: 9.66 | J162: 51.8 | K162: 2 | L162: 1.70
D163: фрукты | E163: Яблоко | F163: 100 | G163: 0.4 | H163: 0.4 | I163: 9.8 | J163: 47 | K163: 588 | L163: 13.90
D166: итого | F166: =SUM(F159:F165) -> 545 | G166: =SUM(G159:G165) -> 23.6 | H166: =SUM(H159:H165) -> 18.56 | I166: =SUM(I159:I165) -> 84.99 | J166: =SUM(J159:J165) -> 607.26 | L166: =SUM(L159:L165) -> 69.57
A167: =A159 -> 2 | B167: =B159 -> 4 | C167: Обед | D167: закуска | E167: Салат из белокачанной капусты, моркови и кукурузы | F167: 60 | G167: 1.41 | H167: 4.19 | I167: 6.78 | J167: 65 | K167: 10 | L167: 6.50
D168: 1 блюдо | E168: Суп куллама по-деревенски (суп картофельный с лапшой и мясными фрикадельками или птицей) | F168: 275 | G168: 7.5 | H168: 5.4 | I168: 15.8 | J168: 146 | K168: 75 | L168: 12.36
D169: 2 блюдо | E169: Птица, тушенная в сметанном соусе | F169: 100 | G169: 7.34 | H169: 13 | I169: 9 | J169: 181 | K169: 594 | L169: 37.44
D170: гарнир | E170: Каша гречневая рассыпчатая | F170: 170 | G170: 10 | H170: 6 | I170: 45 | J170: 273 | K170: 330 | L170: 7.20
D171: напиток | E171: Напиток "Витошка" витаминный | F171: 200 | G171: 0 | H171: 0 | I171: 15.8 | J171: 60 | K171: 287 | L171: 9.42
D172: хлеб бел. | E172: Хлеб пшеничный | F172: 30 | G172: 2.43 | H172: 0.3 | I172: 14.64 | J172: 73 | K172: 1 | L172: 2.70
D173: хлеб чер. | E173: Хлеб ржаной | F173: 30 | G173: 2.55 | H173: 0.99 | I173: 14.49 | J173: 78 | K173: 2 | L173: 2.40
D176: итого | F176: =SUM(F167:F175) -> 865 | G176: =SUM(G167:G175) -> 31 | H176: =SUM(H167:H175) -> 30 | I176: =SUM(I167:I175) -> 121 | J176: =SUM(J167:J175) -> 875 | L176: =SUM(L167:L175) -> 78.02
A177: =A159 -> 2 | B177: =B159 -> 4 | C177: Итого за день: | F177: =F166+F176 -> 1410 | G177: =G166+G176 -> 55 | H177: =H166+H176 -> 48 | I177: =I166+I176 -> 206 | J177: =J166+J176 -> 1483 | L177: =L166+L176 -> 147.59
A178: 2 | B178: 5 | C178: Завтрак | D178: гор. блюдо | E178: Картофельное пюре. Рыба, запеченная с морковью | F178: 260 | G178: 15.31 | H178: 14.86 | I178: 22.44 | J178: 270 | K178: 133; 91 | L178: 47.57
D179: напиток | E179: Сок фруктовый (яблочный) | F179: 200 | G179: 1 | H179: 0.2 | I179: 20.2 | J179: 92 | K179: 15.2 | L179: 14.00
D180: хлеб бел. | E180: Хлеб пшеничный | F180: 30 | G180: 2.43 | H180: 0.3 | I180: 14.64 | J180: 73 | K180: 1 | L180: 2.70
D181: хлеб чер. | E181: Хлеб ржаной | F181: 20 | G181: 1.7 | H181: 0.66 | I181: 9.66 | J181: 52 | K181: 2 | L181: 1.70
D184: итого | F184: =SUM(F178:F183) -> 510 | G184: =SUM(G178:G183) -> 20.44 | H184: =SUM(H178:H183) -> 16.02 | I184: =SUM(I178:I183) -> 66.94 | J184: =SUM(J178:J183) -> 485.9 | L184: =SUM(L178:L183) -> 65.97
A185: =A178 -> 2 | B185: =B178 -> 5 | C185: Обед | D185: закуска | E185: Салат "Здоровье" | F185: 80 | G185: 1.6 | H185: 3.6 | I185: 5.7 | J185: 62 | K185: 20 | L185: 4.80
D186: 1 блюдо | E186: Щи из свежей капусты с картофелем и сметанной | F186: 250 | G186: 2.37 | H186: 6.92 | I186: 11.27 | J186: 117 | K186: 88 | L186: 7.80
D187: 2 блюдо | E187: Плов из птицы | F187: 200 | G187: 11 | H187: 22.69 | I187: 54.05 | J187: 462 | K187: 123 | L187: 49.45
D188: гарнир
D189: сладкое | E189: Компот из сухофруктов | F189: 200 | G189: 0.78 | H189: 0.06 | I189: 30.1 | J189: 125 | K189: 707 | L189: 9.46
D190: хлеб бел. | E190: Хлеб пшеничный | F190: 30 | G190: 2.43 | H190: 0.3 | I190: 14.64 | J190: 73 | K190: 1 | L190: 2.70
D191: хлеб чер. | E191: Хлеб ржаной | F191: 30 | G191: 2.55 | H191: 0.99 | I191: 14.49 | J191: 78 | K191: 2 | L191: 2.40
D192: кондитерск. | E192: Печенье | F192: 30 | G192: 2 | H192: 3 | I192: 22 | J192: 122 | K192: 20 | L192: 7.02
D194: итого | F194: =SUM(F185:F193) -> 820 | G194: =SUM(G185:G193) -> 23 | H194: =SUM(H185:H193) -> 38 | I194: =SUM(I185:I193) -> 153 | J194: =SUM(J185:J193) -> 1039 | L194: =SUM(L185:L193) -> 83.63
A195: =A178 -> 2 | B195: =B178 -> 5 | C195: Итого за день: | F195: =F184+F194 -> 1330 | G195: =G184+G194 -> 43.37 | H195: =H184+H194 -> 53.58 | I195: =I184+I194 -> 219.59 | J195: =J184+J194 -> 1524.72 | L195: =L184+L194 -> 149.60
